lending/lending_fUSD_20260110
["ID","MTS","AMOUNT","RATE_DAILY","PERIOD"]
[401202270,1768041041881,-150.0,0.0001656,2]
[401202271,1768041041890,-1070.7336279,0.00016564,2]
[401202272,1768041041900,-2892.18302046,0.00016564,2]
[401202273,1768041041911,-150.0,0.00016565,2]
[401202274,1768041041922,-150.0,0.00016565,2]
[401202275,1768041041933,-150.0,0.00016574,2]
[401202276,1768041041943,-150.0,0.00016574,2]
[401202277,1768041041954,-150.0,0.00016579,2]
[401202278,1768041041964,-150.0,0.00016587,2]
[401202279,1768041041974,-150.0,0.00016588,2]
[401202280,1768041041984,-500.0,0.00016588,2]
[401202281,1768041041994,-1000.0,0.00016591,2]
[401202282,1768041042004,-150.0,0.00016591,2]
[401202283,1768041042015,-150.0,0.00016591,2]
[401202284,1768041042026,-150.0,0.00016597,2]
[401202285,1768041042036,-150.0,0.000166,2]
[401202286,1768041042046,-150.0,0.00016608,2]
[401202287,1768041042057,-150.0,0.0001661,2]
[401202288,1768041042067,-150.0,0.00016611,2]
[401202289,1768041042077,-150.0,0.00016615,2]
[401202290,1768041042087,-150.0,0.00016617,2]
[401202291,1768041042096,-150.0,0.00016621,2]
[401202292,1768041042105,-150.0,0.00016633,2]
[401202293,1768041042115,-150.0,0.00016642,2]
[401202294,1768041042125,-150.0,0.00016642,2]
[401202295,1768041042135,-150.0,0.00016643,2]
[401202296,1768041042144,-150.0,0.00016643,2]
[401202297,1768041042154,-150.0,0.00016644,2]
[401202298,1768041042164,-150.0,0.0001665,2]
[401202299,1768041042174,-150.0,0.0001665,2]
[401202300,1768041042183,-150.0,0.0001665,2]
[401202301,1768041042193,-150.0,0.0001665,2]
[401202302,1768041042203,-1000.0,0.00016654,2]
[401202303,1768041042215,-998.0,0.00016654,2]
[401202304,1768041042225,-1000.0,0.00016654,2]
[401202305,1768041042236,-1000.0,0.00016654,2]
[401202306,1768041042246,-1000.0,0.00016654,2]
[401202307,1768041042256,-1000.0,0.00016654,2]
[401202308,1768041042267,-546.03496871,0.00016654,2]
[401202309,1768041042278,-628.77903219,0.00016654,2]
[401202310,1768041042290,-623.58710448,0.00016654,2]
[401202311,1768041042302,-250.0,0.00016654,2]
[401202312,1768041042312,-285.08125974,0.00016654,2]
[401202313,1768041042322,-151.0,0.00016654,2]
[401202314,1768041042332,-500.0,0.00016654,2]
[401202315,1768041042343,-496.47127164,0.00016654,2]
[401202316,1768041042356,-424.19615825,0.00016654,2]
[401202317,1768041042368,-322.6107,0.00016654,2]
[401202318,1768041042383,-187.78006525,0.00016654,2]
[401202319,1768041042399,-620.0,0.00016654,2]
[401202320,1768041042410,-150.0,0.00016656,2]
[401202321,1768041042420,-500.0,0.00016663,2]
[401202322,1768041042430,-500.0,0.00016663,2]
[401202323,1768041042439,-500.0,0.00016663,2]
[401202324,1768041042449,-359.11221161,0.00016663,2]
[401202325,1768041042459,-600.0,0.00016664,2]
[401202326,1768041042469,-150.0,0.00016667,2]
[401202327,1768041042479,-150.0,0.00016668,2]
[401202328,1768041042490,-150.0,0.0001667,2]
[401202329,1768041042500,-150.0,0.0001667,2]
[401202330,1768041042510,-150.0,0.00016671,2]
[401202331,1768041042520,-150.0,0.00016674,2]
[401202332,1768041042530,-150.0,0.00016675,2]
[401202333,1768041042540,-150.0,0.00016678,2]
[401202334,1768041042550,-1000.0,0.00016681,2]
[401202335,1768041042561,-150.0,0.00016691,2]
[401202336,1768041042572,-150.0,0.00016696,2]
[401202337,1768041042581,-150.0,0.00016698,2]
[401202338,1768041042591,-150.0,0.00016701,2]
[401202339,1768041042602,-150.0,0.00016705,2]
[401202340,1768041042611,-150.0,0.00016709,2]
[401202341,1768041042621,-160.0,0.00016712,2]
[401202342,1768041042632,-1070.7336279,0.00016712,2]
[401202343,1768041042642,-2892.18302041,0.00016712,2]
[401202344,1768041042652,-150.0,0.00016714,2]
[401202345,1768041042663,-150.0,0.00016714,2]
[401202346,1768041042673,-834.0,0.0001672,2]
[401202347,1768041042683,-299.99,0.0001672,4]
[401202348,1768041042693,-1142.62,0.0001672,2]
[401202349,1768041042702,-746.01,0.0001672,2]
[401202350,1768041042712,-150.0,0.00016722,2]
[401202351,1768041042722,-150.0,0.00016724,2]
[401202352,1768041042732,-150.0,0.00016726,2]
[401202353,1768041042742,-150.0,0.00016733,2]
[401202354,1768041042752,-150.0,0.00016737,2]
[401202355,1768041042762,-150.0,0.00016738,2]
[401202356,1768041042772,-150.0,0.0001674,2]
[401202357,1768041042781,-150.0,0.00016743,2]
[401202358,1768041042791,-150.0,0.00016747,2]
[401202359,1768041042802,-150.0,0.00016748,2]
[401202360,1768041042813,-150.0,0.00016748,2]
[401202361,1768041042823,-387.13656056,0.00016748,2]
[401202362,1768041042833,-150.0,0.00016754,2]
[401202363,1768041042843,-150.0,0.00016761,2]
[401202364,1768041042853,-150.0,0.00016768,2]
[401202365,1768041042863,-150.0,0.0001677,2]
[401202366,1768041042874,-150.0,0.00016774,2]
[401202367,1768041042884,-150.0,0.00016777,2]
[401202368,1768041042894,-150.0,0.00016782,2]
[401202369,1768041042904,-150.0,0.00016784,2]
[401202370,1768041042915,-1000.0,0.00016786,2]
[401202371,1768041042924,-150.0,0.00016792,2]
[401202372,1768041042934,-150.0,0.000168,2]
[401202373,1768041042946,-150.0,0.000168,2]
[401202374,1768041042956,-150.0,0.000168,2]
[401202375,1768041042966,-150.0,0.000168,2]
[401202376,1768041042977,-150.0,0.00016808,2]
[401202377,1768041042987,-150.0,0.00016809,2]
[401202378,1768041042996,-150.0,0.00016811,2]
[401202379,1768041043006,-150.0,0.00016815,2]
[401202380,1768041043017,-150.0,0.00016826,2]
[401202381,1768041043027,-150.0,0.00016826,2]
[401202382,1768041043037,-150.0,0.0001683,2]
[401202383,1768041043047,-150.0,0.00016831,2]
[401202384,1768041043057,-171.19946989,0.00016831,2]
[401202385,1768041043067,-337.82,0.00016831,2]
[401202386,1768041043077,-3816.58,0.00016831,2]
[401202387,1768041043087,-150.0,0.00016832,2]
[401202388,1768041043097,-150.0,0.00016837,2]
[401202389,1768041043107,-327.41,0.00016837,2]
[401202390,1768041043117,-9999.99,0.00016837,2]
[401202391,1768041043126,-3121.21,0.00016837,2]
[401202392,1768041043136,-150.99,0.00016837,2]
[401202393,1768041043151,-5551.89,0.00016837,2]
[401202394,1768041043169,-426.28,0.00016837,2]
[401202395,1768041043179,-150.0,0.00016838,2]
[401202396,1768041043189,-150.0,0.00016845,2]
[401202397,1768041043199,-7794.6,0.00016845,2]
[401202398,1768041043209,-150.0,0.00016852,2]
[401202399,1768041043220,-150.0,0.00016855,2]
[401202400,1768041043229,-150.0,0.00016861,2]
[401202401,1768041043240,-1070.7336279,0.00016861,2]
[401202402,1768041043258,-2892.18302041,0.00016861,2]
[401202403,1768041043268,-500.0,0.00016862,2]
[401202404,1768041043278,-150.0,0.00016863,2]
[401202405,1768041043288,-150.0,0.00016865,2]
[401202406,1768041043307,-150.0,0.00016867,2]
[401202407,1768041043317,-1000.0,0.00016868,2]
[401202408,1768041043327,-150.0,0.00016878,2]
[401202409,1768041043338,-150.0,0.00016878,2]
[401202410,1768041043348,-150.0,0.00016879,2]
[401202411,1768041043359,-150.0,0.00016884,2]
[401202412,1768041043370,-150.0,0.00016892,2]
[401202413,1768041043383,-270.12,0.00016894,2]
[401202414,1768041043395,-150.0,0.00016895,2]
[401202415,1768041043405,-150.0,0.00016901,2]
[401202416,1768041043414,-150.0,0.00016904,2]
[401202417,1768041043425,-150.0,0.00016904,2]
[401202418,1768041043435,-150.0,0.00016906,2]
[401202419,1768041043445,-150.0,0.00016913,2]
[401202420,1768041043457,-150.0,0.0001692,2]
[401202421,1768041043467,-150.0,0.0001692,2]
[401202422,1768041043478,-150.0,0.00016925,2]
[401202423,1768041043488,-150.0,0.00016926,2]
[401202424,1768041043498,-150.0,0.00016929,2]
[401202425,1768041043509,-150.0,0.0001693,2]
[401202426,1768041043519,-150.0,0.00016933,2]
[401202427,1768041043530,-150.0,0.00016947,2]
[401202428,1768041043540,-150.0,0.00016948,2]
[401202429,1768041043550,-150.0,0.00016948,2]
[401202430,1768041043560,-150.0,0.0001695,2]
[401202431,1768041043571,-150.0,0.00016952,2]
[401202432,1768041043580,-150.0,0.00016957,2]
[401202433,1768041043591,-150.0,0.00016958,2]
[401202434,1768041043601,-150.0,0.00016971,2]
[401202435,1768041043611,-150.0,0.00016971,2]
[401202436,1768041043622,-150.0,0.00016975,2]
[401202437,1768041043631,-150.0,0.00016975,2]
[401202438,1768041043642,-150.0,0.00016981,2]
[401202439,1768041043651,-150.0,0.00016983,2]
[401202440,1768041043661,-150.0,0.00016983,2]
[401202441,1768041043671,-396668.31,0.00016986,2]
[401202442,1768041043682,-150.0,0.00016989,2]
[401202443,1768041043692,-150.0,0.00016995,2]
[401202444,1768041043702,-150.0,0.00016997,2]
[401202445,1768041043712,-150.0,0.00017,2]
[401202446,1768041043722,-500.0,0.00017,5]
[401202447,1768041043732,-150.0,0.00017003,2]
[401202448,1768041043742,-150.0,0.00017009,2]
[401202449,1768041043752,-1070.7336279,0.00017009,2]
[401202450,1768041043762,-2892.18302041,0.00017009,2]
[401202451,1768041043772,-150.0,0.0001701,2]
[401202452,1768041043782,-150.0,0.00017015,2]
[401202453,1768041043792,-150.0,0.00017018,2]
[401202454,1768041043802,-150.0,0.0001702,2]
[401202455,1768041043812,-150.0,0.00017021,2]
[401202456,1768041043823,-150.0,0.00017031,2]
[401202457,1768041043834,-150.0,0.00017035,2]
[401202458,1768041043844,-150.0,0.00017042,2]
[401202459,1768041043854,-150.0,0.00017043,2]
[401202460,1768041043864,-1000.0,0.00017047,2]
[401202461,1768041043874,-150.0,0.00017049,2]
[401202462,1768041043885,-150.0,0.00017053,2]
[401202463,1768041043895,-150.0,0.00017058,2]
[401202464,1768041043905,-150.0,0.00017061,2]
[401202465,1768041043914,-150.0,0.00017061,2]
[401202466,1768041043925,-150.0,0.00017065,2]
[401202467,1768041043935,-150.0,0.00017066,2]
[401202468,1768041043946,-150.0,0.00017067,2]
[401202469,1768041043956,-233.0,0.00017072,2]
[401202470,1768041043966,-13172.81,0.00017079,2]
[401202471,1768041043976,-150.0,0.00017083,2]
[401202472,1768041043985,-150.0,0.00017084,2]
[401202473,1768041043995,-150.0,0.00017086,2]
[401202474,1768041044004,-233.0,0.00017086,2]
[401202475,1768041044014,-150.0,0.00017087,2]
[401202476,1768041044025,-150.0,0.00017088,2]
[401202477,1768041044035,-150.0,0.00017089,2]
[401202478,1768041044045,-171.19946989,0.00017098,2]
[401202479,1768041044055,-150.0,0.000171,2]
[401202480,1768041044064,-150.0,0.000171,2]
[401202481,1768041044075,-150.0,0.000171,2]
[401202482,1768041044085,-150.0,0.000171,2]
[401202483,1768041044095,-150.0,0.000171,2]
[401202484,1768041044104,-150.0,0.000171,2]
[401202485,1768041044114,-514.5,0.00017106,2]
[401202486,1768041044124,-150.0,0.00017111,2]
[401202487,1768041044135,-150.0,0.00017112,2]
[401202488,1768041044144,-150.0,0.00017113,2]
[401202489,1768041044154,-150.0,0.00017114,2]
[401202490,1768041044164,-150.0,0.00017116,2]
[401202491,1768041044174,-150.0,0.00017117,2]
[401202492,1768041044184,-150.0,0.00017133,2]
[401202493,1768041044195,-150.0,0.00017134,2]
[401202494,1768041044204,-150.0,0.00017135,2]
[401202495,1768041044215,-500.0,0.00017136,2]
[401202496,1768041044224,-150.0,0.00017139,2]
[401202497,1768041044234,-150.0,0.00017139,2]
[401202498,1768041044244,-150.0,0.00017142,2]
[401202499,1768041044254,-1000.0,0.00017144,2]
[401202500,1768041044263,-150.0,0.00017147,2]
[401202501,1768041044274,-150.0,0.00017151,2]
[401202502,1768041044284,-150.0,0.00017157,2]
[401202503,1768041044294,-1070.7336279,0.00017158,2]
[401202504,1768041044304,-2892.18302041,0.00017158,2]
[401202505,1768041044315,-150.0,0.00017158,2]
[401202506,1768041044324,-150.0,0.00017165,2]
[401202507,1768041044335,-150.0,0.00017169,2]
[401202508,1768041044346,-150.0,0.00017179,2]
[401202509,1768041044358,-150.0,0.0001718,2]
[401202510,1768041044368,-150.0,0.00017182,2]
[401202511,1768041044379,-150.0,0.00017185,2]
[401202512,1768041044394,-514.5,0.00017187,2]
[401202513,1768041044403,-150.0,0.0001719,2]
[401202514,1768041044412,-150.0,0.00017191,2]
[401202515,1768041044424,-150.0,0.00017197,2]
[401202516,1768041044435,-150.0,0.000172,2]
[401202517,1768041044446,-514.84070869,0.00017202,2]
[401202518,1768041044456,-150.0,0.00017203,2]
[401202519,1768041044467,-150.0,0.00017205,2]
[401202520,1768041044479,-150.0,0.00017211,2]
[401202521,1768041044490,-600.0,0.00017212,2]
[401202522,1768041044500,-150.0,0.00017217,2]
[401202523,1768041044511,-150.0,0.00017217,2]
[401202524,1768041044522,-150.0,0.00017219,2]
[401202525,1768041044534,-150.0,0.00017225,2]
[401202526,1768041044549,-150.0,0.00017225,2]
[401202527,1768041044561,-1000.0,0.00017226,2]
[401202528,1768041044572,-150.0,0.00017229,2]
[401202529,1768041044582,-150.0,0.00017229,2]
[401202530,1768041044593,-233.0,0.00017233,2]
[401202531,1768041044603,-150.0,0.00017242,2]
[401202532,1768041044615,-1000.0,0.00017243,2]
[401202533,1768041044626,-150.0,0.00017243,2]
[401202534,1768041044636,-1740.0035,0.00017245,2]
[401202535,1768041044647,-4640.3071,0.00017245,2]
[401202536,1768041044658,-150.0,0.00017248,2]
[401202539,1768041044896,-150.0,0.0001725,2]
[401202540,1768041044938,-150.0,0.00017252,2]
[401202541,1768041044949,-150.0,0.00017252,2]
[401202542,1768041044959,-150.0,0.00017253,2]
[401202543,1768041044969,-150.0,0.00017267,2]
[401202544,1768041044979,-514.5,0.00017269,2]
[401202545,1768041044989,-150.0,0.0001727,2]
[401202546,1768041045000,-150.0,0.00017271,2]
[401202547,1768041045011,-150.0,0.00017274,2]
[401202548,1768041045021,-150.0,0.00017275,2]
[401202549,1768041045031,-150.0,0.0001728,2]
[401202550,1768041045041,-150.0,0.0001728,2]
[401202551,1768041045050,-159.16121496,0.00017281,2]
[401202552,1768041045060,-150.0,0.00017287,2]
[401202553,1768041045070,-150.0,0.00017294,2]
[401202554,1768041045081,-150.0,0.00017296,2]
[401202555,1768041045091,-150.0,0.00017296,2]
[401202556,1768041045101,-150.0,0.00017299,2]
[401202557,1768041045111,-150.0,0.00017305,2]
[401202558,1768041045121,-1070.7336279,0.00017306,2]
[401202559,1768041045131,-2892.18302041,0.00017306,2]
[401202560,1768041045141,-150.0,0.00017308,2]
[401202561,1768041045151,-150.0,0.00017315,2]
[401202562,1768041045160,-150.0,0.00017315,2]
[401202563,1768041045170,-150.0,0.00017315,2]
[401202564,1768041045180,-500.0,0.00017315,2]
[401202565,1768041045190,-150.0,0.00017315,2]
[401202566,1768041045200,-199.74900552,0.00017315,2]
[401202567,1768041045209,-500.0,0.00017315,2]
[401202568,1768041045218,-153.19668317,0.00017315,2]
[401202569,1768041045228,-150.0,0.00017315,2]
[401202570,1768041045238,-150.0,0.00017315,2]
[401202571,1768041045248,-150.0,0.00017316,2]
[401202572,1768041045259,-150.0,0.00017321,2]
[401202573,1768041045268,-150.0,0.00017322,2]
[401202574,1768041045279,-150.0,0.00017322,2]
[401202575,1768041045288,-150.0,0.00017333,2]
[401202576,1768041045299,-150.0,0.00017335,2]
[401202577,1768041045309,-150.0,0.00017337,2]
[401202578,1768041045320,-150.0,0.00017339,2]
[401202579,1768041045331,-150.0,0.00017345,2]
[401202580,1768041045342,-150.0,0.00017348,2]
[401202581,1768041045351,-514.5,0.0001735,2]
[401202582,1768041045361,-150.0,0.00017355,2]
[401202583,1768041045370,-1000.0,0.00017358,2]
[401202584,1768041045383,-150.0,0.00017362,2]
[401202585,1768041045393,-150.0,0.00017363,2]
[401202586,1768041045403,-171.19946989,0.00017366,2]
[401202587,1768041045413,-150.0,0.00017368,2]
[401202588,1768041045423,-150.0,0.00017369,2]
[401202589,1768041045433,-222.12982038,0.0001737,2]
[401202590,1768041045442,-150.0,0.0001737,2]
[401202591,1768041045452,-150.0,0.0001737,2]
[401202592,1768041045461,-500.0,0.0001737,2]
[401202593,1768041045471,-500.0,0.0001737,2]
[401202594,1768041045481,-150.0,0.0001737,2]
[401202595,1768041045489,-150.0,0.00017374,2]
[401202596,1768041045499,-150.0,0.00017374,2]
[401202598,1768041045508,-233.0,0.00017381,2]
[401202600,1768041045519,-150.0,0.00017385,2]
[401202601,1768041045529,-1000.0,0.00017386,2]
[401202602,1768041045538,-150.0,0.00017389,2]
[401202603,1768041045549,-150.0,0.00017391,2]
[401202604,1768041045559,-150.0,0.00017392,2]
[401202605,1768041045568,-233.0,0.00017397,2]
[401202606,1768041045579,-150.0,0.000174,2]
[401202607,1768041045590,-150.0,0.000174,2]
[401202608,1768041045601,-150.0,0.000174,2]
[401202609,1768041045611,-150.0,0.000174,2]
[401202610,1768041045621,-150.0,0.00017408,2]
[401202611,1768041045631,-500.0,0.0001741,2]
[401202612,1768041045642,-150.0,0.00017416,2]
[401202613,1768041045652,-150.0,0.00017418,2]
[401202614,1768041045662,-150.0,0.00017423,2]
[401202615,1768041045671,-150.0,0.00017425,2]
[401202616,1768041045680,-500.0,0.00017425,2]
[401202617,1768041045690,-200.0,0.00017425,2]
[401202618,1768041045700,-150.0,0.00017426,2]
[401202619,1768041045710,-150.0,0.0001743,2]
[401202620,1768041045720,-514.5,0.00017431,2]
[401202621,1768041045730,-150.0,0.00017432,2]
[401202622,1768041045740,-150.0,0.00017439,2]
[401202623,1768041045752,-150.0,0.00017446,2]
[401202624,1768041045762,-150.0,0.00017452,2]
[401202625,1768041045772,-150.0,0.00017452,2]
[401202626,1768041045782,-150.0,0.00017453,2]
[401202627,1768041045792,-1070.7336279,0.00017455,2]
[401202628,1768041045802,-2892.18302041,0.00017455,2]
[401202629,1768041045811,-150.0,0.00017457,2]
[401202630,1768041045822,-150.0,0.0001746,2]
[401202631,1768041045832,-150.0,0.00017462,2]
[401202632,1768041045841,-150.0,0.00017463,2]
[401202633,1768041045852,-150.0,0.00017467,2]
[401202634,1768041045861,-1000.0,0.00017468,2]
[401202635,1768041045872,-150.0,0.00017474,2]
[401202636,1768041045882,-150.0,0.00017476,2]
[401202637,1768041045892,-150.0,0.00017478,2]
[401202638,1768041045901,-200.0,0.00017479,2]
[401202639,1768041045913,-500.0,0.00017479,2]
[401202640,1768041045923,-1000.0,0.00017485,2]
[401202641,1768041045934,-150.0,0.00017486,2]
[401202642,1768041045944,-150.0,0.00017486,2]
[401202643,1768041045953,-150.0,0.00017491,2]
[401202645,1768041045962,-250.0,0.00017493,2]
[401202647,1768041045972,-600.0,0.00017493,2]
[401202648,1768041045982,-250.0,0.00017493,2]
[401202649,1768041045992,-204.30929403,0.00017493,2]
[401202650,1768041046003,-150.0,0.00017495,2]
[401202651,1768041046013,-150.0,0.00017499,2]
[401202652,1768041046022,-2000.0,0.000175,2]
[401202653,1768041046033,-150.0,0.00017502,2]
[401202654,1768041046043,-150.0,0.00017504,2]
[401202655,1768041046053,-150.0,0.00017509,2]
[401202656,1768041046062,-233.0,0.0001751,2]
[401202657,1768041046072,-514.5,0.00017512,2]
[401202658,1768041046082,-659.3281205,0.00017518,2]
[401202659,1768041046092,-150.0,0.00017522,2]
[401202660,1768041046102,-150.0,0.00017525,2]
[401202661,1768041046111,-150.0,0.00017526,2]
[401202662,1768041046122,-150.0,0.00017529,2]
[401202663,1768041046131,-150.0,0.0001753,2]
[401202664,1768041046141,-150.0,0.0001753,2]
[401202665,1768041046156,-150.0,0.00017532,2]
[401202666,1768041046166,-150.0,0.00017533,2]
[401202667,1768041046176,-500.0,0.00017534,2]
[401202668,1768041046186,-150.0,0.00017544,2]
[401202669,1768041046196,-150.0,0.0001755,2]
[401202670,1768041046205,-150.0,0.0001755,2]
[401202671,1768041046215,-150.0,0.0001755,2]
[401202672,1768041046225,-150.0,0.0001755,2]
[401202673,1768041046234,-150.0,0.00017556,2]
[401202674,1768041046243,-150.0,0.00017557,2]
[401202675,1768041046253,-150.0,0.00017557,2]
[401202676,1768041046263,-150.0,0.00017558,2]
[401202677,1768041046272,-150.0,0.00017558,2]
[401202678,1768041046282,-150.0,0.00017567,2]
[401202679,1768041046291,-150.0,0.00017579,2]
[401202680,1768041046300,-1680.0,0.0001758,2]
[401202681,1768041046310,-150.0,0.00017583,2]
[401202682,1768041046320,-150.0,0.00017585,2]
[401202683,1768041046329,-500.0,0.00017589,2]
[401202684,1768041046339,-150.0,0.00017589,2]
[401202685,1768041046348,-150.0,0.00017589,2]
[401202686,1768041046361,-150.0,0.00017589,2]
[401202687,1768041046370,-152.08512416,0.00017589,2]
[401202688,1768041046383,-150.0,0.00017589,2]
[401202689,1768041046393,-150.0,0.0001759,2]
[401202690,1768041046403,-150.0,0.00017592,2]
[401202691,1768041046414,-514.5,0.00017594,2]
[401202692,1768041046424,-150.0,0.000176,2]
[401202693,1768041046435,-150.0,0.00017603,2]
[401202694,1768041046446,-1070.7336279,0.00017603,2]
[401202695,1768041046456,-2892.18302041,0.00017603,2]
[401202696,1768041046465,-150.0,0.00017609,2]
[401202697,1768041046475,-150.0,0.00017609,2]
[401202698,1768041046486,-150.0,0.00017612,2]
[401202699,1768041046496,-150.0,0.00017613,2]
[401202700,1768041046506,-1000.0,0.00017614,2]
[401202701,1768041046516,-150.0,0.00017621,2]
[401202702,1768041046526,-150.0,0.00017626,2]
[401202703,1768041046535,-150.0,0.00017626,2]
[401202704,1768041046545,-171.19946989,0.00017633,2]
[401202705,1768041046555,-150.0,0.00017635,2]
[401202706,1768041046564,-150.0,0.00017635,2]
[401202707,1768041046573,-150.0,0.0001764,2]
[401202708,1768041046584,-150.0,0.0001764,2]
[401202709,1768041046594,-10537.80982193,0.0001764,2]
[401202710,1768041046604,-300.0,0.00017644,2]
[401202711,1768041046614,-150.0,0.00017644,2]
[401202712,1768041046624,-150.0,0.00017644,2]
[401202713,1768041046634,-150.0,0.00017649,2]
[401202714,1768041046644,-150.0,0.00017653,2]
[401202715,1768041046655,-150.0,0.00017658,2]
[401202716,1768041046664,-150.0,0.0001766,2]
[401202717,1768041046674,-150.0,0.00017661,2]
[401202718,1768041046687,-1000.0,0.00017664,2]
[401202719,1768041046696,-150.0,0.00017667,2]
[401202720,1768041046707,-150.0,0.00017668,2]
[401202721,1768041046716,-150.0,0.00017673,2]
[401202722,1768041046726,-514.5,0.00017675,2]
[401202723,1768041046735,-150.0,0.00017681,2]
[401202724,1768041046744,-150.0,0.00017684,2]
[401202725,1768041046754,-150.0,0.00017687,2]
[401202726,1768041046763,-150.0,0.00017687,2]
[401202727,1768041046773,-623.0,0.00017689,2]
[401202728,1768041046783,-150.0,0.00017694,2]
[401202729,1768041046792,-150.0,0.00017695,2]
[401202730,1768041046802,-150.0,0.00017696,2]
[401202731,1768041046813,-150.0,0.00017699,2]
[401202732,1768041046823,-150.0,0.000177,2]
[401202733,1768041046832,-1000.0,0.000177,2]
[401202734,1768041046842,-150.0,0.00017704,2]
[401202735,1768041046852,-150.0,0.00017713,2]
[401202736,1768041046862,-826.466,0.00017714,2]
[401202737,1768041046873,-150.8882723,0.00017715,2]
[401202738,1768041046882,-151.05982543,0.00017715,2]
[401202739,1768041046892,-150.0,0.00017715,2]
[401202740,1768041046902,-150.0,0.00017715,2]
[401202741,1768041046912,-150.0,0.00017715,2]
[401202742,1768041046921,-150.0,0.00017715,2]
[401202743,1768041046931,-233.86226435,0.00017715,2]
[401202744,1768041046941,-150.0,0.00017715,2]
[401202745,1768041046951,-150.0,0.00017715,2]
[401202746,1768041046960,-150.0,0.00017715,2]
[401202747,1768041046970,-150.7951792,0.00017715,2]
[401202748,1768041046980,-150.0,0.00017716,2]
[401202749,1768041046990,-150.0,0.00017719,2]
[401202750,1768041047000,-150.0,0.00017723,2]
[401202751,1768041047010,-1424.982,0.00017726,2]
[401202752,1768041047020,-2441.065,0.00017726,2]
[401202753,1768041047030,-150.0,0.00017727,2]
[401202754,1768041047039,-150.0,0.00017728,2]
[401202755,1768041047050,-150.0,0.00017729,2]
[401202756,1768041047060,-150.0,0.0001773,2]
[401202757,1768041047072,-7554.21886386,0.0001773,2]
[401202758,1768041047083,-150.0,0.00017733,2]
[401202759,1768041047092,-1000.0,0.00017739,2]
[401202760,1768041047102,-150.0,0.00017739,2]
[401202761,1768041047112,-150.0,0.00017743,2]
[401202762,1768041047121,-150.0,0.00017743,2]
[401202763,1768041047131,-1000.0,0.00017743,2]
[401202764,1768041047141,-1000.0,0.00017744,2]
[401202765,1768041047152,-150.0,0.00017747,2]
[401202766,1768041047162,-150.0,0.00017749,2]
[401202767,1768041047171,-533.88981491,0.0001775,2]
[401202768,1768041047182,-233.0,0.0001775,2]
[401202769,1768041047192,-150.0,0.00017751,2]
[401202770,1768041047202,-1070.7336279,0.00017752,2]
[401202771,1768041047212,-2892.18302041,0.00017752,2]
[401202772,1768041047222,-514.5,0.00017756,2]
[401202773,1768041047233,-600.0,0.00017759,2]
[401202774,1768041047245,-150.0,0.00017762,2]
[401202775,1768041047254,-150.0,0.00017765,2]